[Event "January 2 Late 2024"]
[Site "https://www.chess.com"]
[Date "2024.01.02"]
[Round "1"]
[White "Sroczynski, Maciej"]
[Black "Makridis, Dimitrios"]
[Result "1/2-1/2"]
[Board "104"]
[TimeControl "180+1"]
[WhiteFideId "1121472"]
[BlackFideId "25864475"]
[WhiteElo "2401"]
[BlackElo "2717"]
[WhiteTeam "POL"]
[BlackTeam "GRE"]
[WhiteClock "0:00:03"]
[BlackClock "0:00:07"]

1. d4 {[%clk 0:03:00]}  Nf6 {[%clk 0:02:58]} 2. Nf3 {[%clk 0:03:00]}  d6 {[%clk 0:02:56]} 3. c4 {[%clk 0:03:00]}  g6 {[%clk 0:02:48]} 4. Nc3 {[%clk 0:03:00]}  Bg7 {[%clk 0:02:49]} 5. e4 {[%clk 0:03:01]}  O-O {[%clk 0:02:49]} 6. Be2 {[%clk 0:03:01]}  Nc6 {[%clk 0:02:50]} 7. O-O {[%clk 0:02:58]}  e5 {[%clk 0:02:50]} 8. Bg5 {[%clk 0:02:52]}  h6 {[%clk 0:02:49]} 9. Bxf6 {[%clk 0:02:44]}  Bxf6 {[%clk 0:02:50]} 10. Nd5 {[%clk 0:02:40]}  Bg7 {[%clk 0:02:44]} 11. dxe5 {[%clk 0:02:39]}  Nxe5 {[%clk 0:02:42]} 12. Nxe5 {[%clk 0:02:32]}  dxe5 {[%clk 0:02:43]} 13. c5 {[%clk 0:02:25]}  c6 {[%clk 0:02:31]} 14. Ne3 {[%clk 0:02:24]}  Qe7 {[%clk 0:02:28]} 15. b4 {[%clk 0:02:18]}  Be6 {[%clk 0:02:28]} 16. Nc4 {[%clk 0:02:10]}  f5 {[%clk 0:02:21]} 17. Nd6 {[%clk 0:02:06]}  Rad8 {[%clk 0:02:20]} 18. Qc2 {[%clk 0:01:48]}  f4 {[%clk 0:02:17]} 19. f3 {[%clk 0:01:46]}  g5 {[%clk 0:02:15]} 20. Bc4 {[%clk 0:01:45]}  Bxc4 {[%clk 0:02:12]} 21. Qxc4+ {[%clk 0:01:44]}  Kh8 {[%clk 0:02:13]} 22. a4 {[%clk 0:01:36]}  h5 {[%clk 0:02:04]} 23. Ra3 {[%clk 0:01:35]}  g4 {[%clk 0:02:03]} 24. Rd1 {[%clk 0:01:34]}  g3 {[%clk 0:01:50]} 25. h3 {[%clk 0:01:34]}  b6 {[%clk 0:01:45]} 26. Rad3 {[%clk 0:01:32]}  Rd7 {[%clk 0:01:39]} 27. Nf5 {[%clk 0:01:26]}  Rxd3 {[%clk 0:01:35]} 28. Qxd3 {[%clk 0:01:11]}  Qe6 {[%clk 0:01:29]} 29. Qd7 {[%clk 0:01:09]}  Qxd7 {[%clk 0:01:27]} 30. Rxd7 {[%clk 0:01:09]}  Bf6 {[%clk 0:01:19]} 31. Rxa7 {[%clk 0:00:51]}  bxc5 {[%clk 0:01:17]} 32. bxc5 {[%clk 0:00:51]}  Rb8 {[%clk 0:01:18]} 33. Kf1 {[%clk 0:00:51]}  Rb1+ {[%clk 0:01:18]} 34. Ke2 {[%clk 0:00:51]}  Rb2+ {[%clk 0:01:19]} 35. Kd3 {[%clk 0:00:51]}  Rxg2 {[%clk 0:01:19]} 36. Rf7 {[%clk 0:00:47]}  Bg5 {[%clk 0:01:10]} 37. Rg7 {[%clk 0:00:42]}  Bd8 {[%clk 0:01:05]} 38. Ra7 {[%clk 0:00:39]}  Rg1 {[%clk 0:00:40]} 39. Ke2 {[%clk 0:00:39]}  Ra1 {[%clk 0:00:30]} 40. Ra8 {[%clk 0:00:27]}  Kh7 {[%clk 0:00:29]} 41. Rxd8 {[%clk 0:00:28]}  Rxa4 {[%clk 0:00:21]} 42. Rd7+ {[%clk 0:00:26]}  Kg6 {[%clk 0:00:21]} 43. Rg7+ {[%clk 0:00:26]}  Kf6 {[%clk 0:00:22]} 44. Rg8 {[%clk 0:00:25]}  Ra2+ {[%clk 0:00:21]} 45. Kf1 {[%clk 0:00:23]}  Rf2+ {[%clk 0:00:21]} 46. Kg1 {[%clk 0:00:23]}  Rxf3 {[%clk 0:00:22]} 47. Rc8 {[%clk 0:00:20]}  Rc3 {[%clk 0:00:16]} 48. Rxc6+ {[%clk 0:00:19]}  Kg5 {[%clk 0:00:16]} 49. Rc8 {[%clk 0:00:18]}  f3 {[%clk 0:00:16]} 50. Nxg3 {[%clk 0:00:18]}  Kh4 {[%clk 0:00:15]} 51. Nf1 {[%clk 0:00:17]}  Kxh3 {[%clk 0:00:14]} 52. Rg8 {[%clk 0:00:17]}  h4 {[%clk 0:00:13]} 53. Rc8 {[%clk 0:00:14]}  Rc2 {[%clk 0:00:13]} 54. Rf8 {[%clk 0:00:12]}  Rg2+ {[%clk 0:00:12]} 55. Kh1 {[%clk 0:00:12]}  Rb2 {[%clk 0:00:05]} 56. Rxf3+ {[%clk 0:00:12]}  Kg4 {[%clk 0:00:05]} 57. Rc3 {[%clk 0:00:12]}  Rb8 {[%clk 0:00:05]} 58. c6 {[%clk 0:00:11]}  Rc8 {[%clk 0:00:06]} 59. c7 {[%clk 0:00:12]}  Kf4 {[%clk 0:00:07]} 60. Nd2 {[%clk 0:00:11]}  h3 {[%clk 0:00:06]} 61. Kh2 {[%clk 0:00:12]}  Kg4 {[%clk 0:00:05]} 62. Rc5 {[%clk 0:00:10]}  Kf4 {[%clk 0:00:05]} 63. Rc3 {[%clk 0:00:09]}  Kg4 {[%clk 0:00:05]} 64. Nb3 {[%clk 0:00:08]}  Kf4 {[%clk 0:00:05]} 65. Rc4 {[%clk 0:00:08]}  Ke3 {[%clk 0:00:05]} 66. Na5 {[%clk 0:00:08]}  Kd3 {[%clk 0:00:04]} 67. Rc1 {[%clk 0:00:08]}  Kxe4 {[%clk 0:00:04]} 68. Nb7 {[%clk 0:00:09]}  Kd5 {[%clk 0:00:05]} 69. Kxh3 {[%clk 0:00:08]}  e4 {[%clk 0:00:05]} 70. Kg3 {[%clk 0:00:08]}  Ke5 {[%clk 0:00:05]} 71. Kf2 {[%clk 0:00:08]}  Rf8+ {[%clk 0:00:05]} 72. Ke3 {[%clk 0:00:08]}  Rc8 {[%clk 0:00:06]} 73. Rc5+ {[%clk 0:00:06]}  Ke6 {[%clk 0:00:07]} 74. Na5 {[%clk 0:00:02]}  Kd6 {[%clk 0:00:07]} 75. Nb7+ {[%clk 0:00:01]}  Kd7 {[%clk 0:00:07]} 76. Kd4 {[%clk 0:00:02]}  Rxc7 {[%clk 0:00:07]} 77. Rxc7+ {[%clk 0:00:02]}  Kxc7 {[%clk 0:00:07]} 78. Kxe4 {[%clk 0:00:03]} 1/2-1/2

[Event "January 2 Late 2024"]
[Site "https://www.chess.com"]
[Date "2024.01.02"]
[Round "1"]
[White "Rakitin, Daniil"]
[Black "Skibbe, Willi"]
[Result "1-0"]
[Board "109"]
[TimeControl "180+1"]
[WhiteFideId "24219762"]
[BlackFideId "4682190"]
[WhiteElo "2710"]
[BlackElo "2395"]
[WhiteTeam "RUS"]
[BlackTeam "GER"]
[WhiteClock "0:00:05"]
[BlackClock "0:00:00"]

1. e4 {[%clk 0:02:57]}  e6 {[%clk 0:02:52]} 2. d4 {[%clk 0:02:56]}  d5 {[%clk 0:02:45]} 3. Nc3 {[%clk 0:02:54]}  Nf6 {[%clk 0:02:39]} 4. e5 {[%clk 0:02:53]}  Nfd7 {[%clk 0:02:38]} 5. f4 {[%clk 0:02:53]}  c5 {[%clk 0:02:39]} 6. Nf3 {[%clk 0:02:53]}  Nc6 {[%clk 0:02:39]} 7. Be3 {[%clk 0:02:53]}  a6 {[%clk 0:02:39]} 8. Qd2 {[%clk 0:02:54]}  b5 {[%clk 0:02:38]} 9. Nd1 {[%clk 0:02:51]}  Qb6 {[%clk 0:02:33]} 10. Nf2 {[%clk 0:02:47]}  cxd4 {[%clk 0:02:30]} 11. Nxd4 {[%clk 0:02:45]}  Bc5 {[%clk 0:02:30]} 12. O-O-O {[%clk 0:02:42]}  g6 {[%clk 0:02:21]} 13. Ng4 {[%clk 0:02:36]}  h5 {[%clk 0:02:18]} 14. Nf2 {[%clk 0:02:29]}  Bb7 {[%clk 0:01:48]} 15. Be2 {[%clk 0:02:22]}  Nxd4 {[%clk 0:01:29]} 16. Bxd4 {[%clk 0:02:21]}  Bxd4 {[%clk 0:01:29]} 17. Qxd4 {[%clk 0:02:22]}  Qxd4 {[%clk 0:01:29]} 18. Rxd4 {[%clk 0:02:22]}  Ke7 {[%clk 0:01:30]} 19. Bf3 {[%clk 0:02:13]}  Rhc8 {[%clk 0:01:23]} 20. Rhd1 {[%clk 0:02:11]}  Nb6 {[%clk 0:01:16]} 21. b3 {[%clk 0:02:07]}  a5 {[%clk 0:01:06]} 22. Be2 {[%clk 0:02:00]}  b4 {[%clk 0:01:04]} 23. Kb2 {[%clk 0:01:49]}  Ba6 {[%clk 0:00:57]} 24. Bxa6 {[%clk 0:01:48]}  Rxa6 {[%clk 0:00:58]} 25. g3 {[%clk 0:01:36]}  Rc7 {[%clk 0:00:50]} 26. h3 {[%clk 0:01:33]}  Nc8 {[%clk 0:00:48]} 27. g4 {[%clk 0:01:24]}  hxg4 {[%clk 0:00:48]} 28. hxg4 {[%clk 0:01:24]}  Rac6 {[%clk 0:00:47]} 29. R4d2 {[%clk 0:01:17]}  Na7 {[%clk 0:00:45]} 30. Rf1 {[%clk 0:01:11]}  Nb5 {[%clk 0:00:43]} 31. Nd3 {[%clk 0:01:11]}  Na3 {[%clk 0:00:38]} 32. Ne1 {[%clk 0:01:09]}  Rc3 {[%clk 0:00:38]} 33. f5 {[%clk 0:01:01]}  Rg3 {[%clk 0:00:29]} 34. fxg6 {[%clk 0:00:56]}  fxg6 {[%clk 0:00:29]} 35. Rh2 {[%clk 0:00:56]}  Kd7 {[%clk 0:00:23]} 36. Rf7+ {[%clk 0:00:10]}  Kc6 {[%clk 0:00:22]} 37. Rf6 {[%clk 0:00:10]}  Kb6 {[%clk 0:00:20]} 38. Rxe6+ {[%clk 0:00:10]}  Kb7 {[%clk 0:00:19]} 39. Re2 {[%clk 0:00:06]}  Rxg4 {[%clk 0:00:19]} 40. Rd6 {[%clk 0:00:05]}  Rc5 {[%clk 0:00:18]} 41. e6 {[%clk 0:00:05]}  Rc8 {[%clk 0:00:00]} 42. e7 {[%clk 0:00:05]} 1-0

[Event "January 2 Late 2024"]
[Site "https://www.chess.com"]
[Date "2024.01.02"]
[Round "1"]
[White "Aarav Dengla"]
[Black "Sala, Giulia"]
[Result "1-0"]
[Board "119"]
[TimeControl "180+1"]
[WhiteFideId "45059756"]
[BlackFideId "2840451"]
[WhiteElo "2687"]
[BlackElo "2381"]
[WhiteTeam "IND"]
[BlackTeam "ITA"]
[WhiteClock "0:02:23"]
[BlackClock "0:02:16"]

1. b3 {[%clk 0:03:00]}  d5 {[%clk 0:02:50]} 2. Bb2 {[%clk 0:02:58]}  c5 {[%clk 0:02:49]} 3. d3 {[%clk 0:02:57]}  Nc6 {[%clk 0:02:49]} 4. Nd2 {[%clk 0:02:57]}  e5 {[%clk 0:02:49]} 5. e3 {[%clk 0:02:57]}  Nf6 {[%clk 0:02:50]} 6. Be2 {[%clk 0:02:57]}  Bd6 {[%clk 0:02:50]} 7. g4 {[%clk 0:02:57]}  h6 {[%clk 0:02:49]} 8. h4 {[%clk 0:02:56]}  Qe7 {[%clk 0:02:45]} 9. c4 {[%clk 0:02:51]}  d4 {[%clk 0:02:43]} 10. e4 {[%clk 0:02:47]}  Nb4 {[%clk 0:02:41]} 11. a3 {[%clk 0:02:43]}  Nc6 {[%clk 0:02:30]} 12. Nh3 {[%clk 0:02:39]}  Be6 {[%clk 0:02:28]} 13. g5 {[%clk 0:02:38]}  hxg5 {[%clk 0:02:28]} 14. Nxg5 {[%clk 0:02:39]}  O-O-O {[%clk 0:02:24]} 15. Qc2 {[%clk 0:02:37]}  Bg4 {[%clk 0:02:21]} 16. Qd1 {[%clk 0:02:24]}  Bxe2 {[%clk 0:02:16]} 17. Qxe2 {[%clk 0:02:23]}  Nh5 {[%clk 0:02:16]} 1-0

[Event "January 2 Late 2024"]
[Site "https://www.chess.com"]
[Date "2024.01.02"]
[Round "1"]
[White "Rosen, Eric"]
[Black "ArchibaldCerveza29"]
[Result "1-0"]
[Board "121"]
[TimeControl "180+1"]
[WhiteFideId "2032562"]
[WhiteElo "2679"]
[BlackElo "2379"]
[WhiteTeam "USA"]
[WhiteClock "0:01:29"]
[BlackClock "0:00:41"]

1. e4 {[%clk 0:03:00]}  e5 {[%clk 0:02:55]} 2. Nf3 {[%clk 0:03:00]}  Nc6 {[%clk 0:02:54]} 3. Nc3 {[%clk 0:03:00]}  Nf6 {[%clk 0:02:54]} 4. d4 {[%clk 0:02:59]}  exd4 {[%clk 0:02:55]} 5. Nxd4 {[%clk 0:03:00]}  Bb4 {[%clk 0:02:55]} 6. Nxc6 {[%clk 0:03:00]}  bxc6 {[%clk 0:02:56]} 7. Bd3 {[%clk 0:03:00]}  O-O {[%clk 0:02:57]} 8. O-O {[%clk 0:03:01]}  d5 {[%clk 0:02:57]} 9. Bd2 {[%clk 0:03:01]}  Rb8 {[%clk 0:02:52]} 10. Re1 {[%clk 0:02:45]}  Re8 {[%clk 0:02:51]} 11. h3 {[%clk 0:02:39]}  Bxc3 {[%clk 0:02:03]} 12. Bxc3 {[%clk 0:02:39]}  d4 {[%clk 0:02:04]} 13. Bd2 {[%clk 0:02:26]}  Rxb2 {[%clk 0:02:03]} 14. e5 {[%clk 0:02:24]}  Nd5 {[%clk 0:02:03]} 15. Qh5 {[%clk 0:02:14]}  g6 {[%clk 0:02:04]} 16. Qf3 {[%clk 0:02:14]}  c5 {[%clk 0:01:38]} 17. Bh6 {[%clk 0:02:06]}  Bb7 {[%clk 0:01:34]} 18. Rab1 {[%clk 0:02:01]}  Rxb1 {[%clk 0:01:32]} 19. Rxb1 {[%clk 0:02:02]}  Ba8 {[%clk 0:01:32]} 20. Be4 {[%clk 0:01:39]}  Rxe5 {[%clk 0:01:12]} 21. Bxd5 {[%clk 0:01:39]}  Bxd5 {[%clk 0:01:12]} 22. Qf6 {[%clk 0:01:29]}  Qxf6 {[%clk 0:00:39]} 23. Rb8+ {[%clk 0:01:28]}  Qd8 {[%clk 0:00:40]} 24. Rxd8+ {[%clk 0:01:28]}  Re8 {[%clk 0:00:41]} 25. Rxe8# {[%clk 0:01:29]} 1-0

[Event "January 2 Late 2024"]
[Site "https://www.chess.com"]
[Date "2024.01.02"]
[Round "1"]
[White "Gao, Raymond"]
[Black "Riff, Vincent"]
[Result "0-1"]
[Board "124"]
[TimeControl "180+1"]
[WhiteFideId "2629429"]
[BlackFideId "617776"]
[WhiteElo "2375"]
[BlackElo "2677"]
[WhiteTeam "CAN"]
[BlackTeam "FRA"]
[WhiteClock "0:01:32"]
[BlackClock "0:01:32"]

1. e4 {[%clk 0:02:59]}  c5 {[%clk 0:02:59]} 2. Nf3 {[%clk 0:02:59]}  Nc6 {[%clk 0:03:00]} 3. Bb5 {[%clk 0:02:58]}  d6 {[%clk 0:03:00]} 4. d4 {[%clk 0:02:58]}  cxd4 {[%clk 0:03:00]} 5. Nxd4 {[%clk 0:02:56]}  Bd7 {[%clk 0:02:59]} 6. Nc3 {[%clk 0:02:56]}  Nf6 {[%clk 0:02:59]} 7. Be3 {[%clk 0:02:55]}  g6 {[%clk 0:02:56]} 8. f3 {[%clk 0:02:53]}  Bg7 {[%clk 0:02:56]} 9. Qd2 {[%clk 0:02:54]}  O-O {[%clk 0:02:55]} 10. O-O {[%clk 0:02:53]}  Rc8 {[%clk 0:02:55]} 11. Be2 {[%clk 0:02:50]}  Ne5 {[%clk 0:02:54]} 12. Bg5 {[%clk 0:02:48]}  Nc4 {[%clk 0:02:51]} 13. Bxc4 {[%clk 0:02:47]}  Rxc4 {[%clk 0:02:51]} 14. Nb3 {[%clk 0:02:47]}  b5 {[%clk 0:02:35]} 15. Rfe1 {[%clk 0:02:41]}  b4 {[%clk 0:02:26]} 16. Nd5 {[%clk 0:02:41]}  Nxd5 {[%clk 0:02:21]} 17. exd5 {[%clk 0:02:41]}  Re8 {[%clk 0:02:21]} 18. Rab1 {[%clk 0:02:13]}  a5 {[%clk 0:02:13]} 19. Re4 {[%clk 0:02:11]}  Qc7 {[%clk 0:02:05]} 20. Rxc4 {[%clk 0:02:01]}  Qxc4 {[%clk 0:02:06]} 21. Qd3 {[%clk 0:02:00]}  Qxd3 {[%clk 0:02:05]} 22. cxd3 {[%clk 0:02:01]}  a4 {[%clk 0:02:04]} 23. Nd2 {[%clk 0:02:01]}  Bd4+ {[%clk 0:02:00]} 24. Kf1 {[%clk 0:01:57]}  f6 {[%clk 0:01:57]} 25. Bh4 {[%clk 0:01:55]}  Rc8 {[%clk 0:01:57]} 26. Nc4 {[%clk 0:01:54]}  Bf5 {[%clk 0:01:37]} 27. Ke2 {[%clk 0:01:51]}  Rxc4 {[%clk 0:01:36]} 28. g4 {[%clk 0:01:33]}  Rc2+ {[%clk 0:01:35]} 29. Ke1 {[%clk 0:01:33]}  Bxd3 {[%clk 0:01:32]} 30. Rd1 {[%clk 0:01:32]}  Re2+ {[%clk 0:01:32]} 31. Kf1 {[%clk 0:01:32]}  Rd2+ {[%clk 0:01:32]} 0-1

[Event "January 2 Late 2024"]
[Site "https://www.chess.com"]
[Date "2024.01.02"]
[Round "1"]
[White "Zakarian, David"]
[Black "Perske, Thore"]
[Result "1-0"]
[Board "126"]
[TimeControl "180+1"]
[WhiteFideId "13301276"]
[BlackFideId "12902195"]
[WhiteElo "2372"]
[BlackElo "2676"]
[WhiteTeam "ARM"]
[BlackTeam "GER"]
[WhiteClock "0:00:33"]
[BlackClock "0:00:09"]

1. d4 {[%clk 0:03:00]}  d5 {[%clk 0:02:58]} 2. c4 {[%clk 0:03:01]}  c6 {[%clk 0:02:56]} 3. Qc2 {[%clk 0:03:00]}  Nf6 {[%clk 0:02:53]} 4. Nf3 {[%clk 0:03:00]}  dxc4 {[%clk 0:02:48]} 5. Qxc4 {[%clk 0:03:00]}  Bg4 {[%clk 0:02:48]} 6. Ne5 {[%clk 0:02:56]}  Be6 {[%clk 0:02:48]} 7. Qd3 {[%clk 0:02:55]}  Nbd7 {[%clk 0:02:47]} 8. Nxd7 {[%clk 0:02:54]}  Qxd7 {[%clk 0:02:48]} 9. Nc3 {[%clk 0:02:52]}  Rd8 {[%clk 0:02:45]} 10. e3 {[%clk 0:02:44]}  g6 {[%clk 0:02:42]} 11. Be2 {[%clk 0:02:43]}  Bg7 {[%clk 0:02:42]} 12. O-O {[%clk 0:02:42]}  O-O {[%clk 0:02:33]} 13. Rd1 {[%clk 0:02:41]}  Nd5 {[%clk 0:02:27]} 14. Ne4 {[%clk 0:02:26]}  Bf5 {[%clk 0:02:10]} 15. Bf3 {[%clk 0:02:17]}  Nf6 {[%clk 0:01:48]} 16. Nxf6+ {[%clk 0:02:13]}  Bxf6 {[%clk 0:01:49]} 17. Qb3 {[%clk 0:02:13]}  Bg4 {[%clk 0:01:31]} 18. Bxg4 {[%clk 0:02:06]}  Qxg4 {[%clk 0:01:32]} 19. h3 {[%clk 0:02:05]}  Qe2 {[%clk 0:01:24]} 20. Bd2 {[%clk 0:01:53]}  e5 {[%clk 0:01:23]} 21. Bc3 {[%clk 0:01:45]}  exd4 {[%clk 0:01:19]} 22. Bxd4 {[%clk 0:01:44]}  Bxd4 {[%clk 0:01:15]} 23. Rxd4 {[%clk 0:01:45]}  Rxd4 {[%clk 0:01:15]} 24. exd4 {[%clk 0:01:45]}  Rd8 {[%clk 0:00:54]} 25. Qxb7 {[%clk 0:01:35]}  Rxd4 {[%clk 0:00:53]} 26. Qxc6 {[%clk 0:01:34]}  Rd2 {[%clk 0:00:52]} 27. Qc8+ {[%clk 0:01:28]}  Kg7 {[%clk 0:00:52]} 28. Qc3+ {[%clk 0:01:28]}  Kg8 {[%clk 0:00:52]} 29. Qc8+ {[%clk 0:01:28]}  Kg7 {[%clk 0:00:52]} 30. Qc3+ {[%clk 0:01:28]}  Kh6 {[%clk 0:00:49]} 31. Qe3+ {[%clk 0:01:18]}  Qxe3 {[%clk 0:00:48]} 32. fxe3 {[%clk 0:01:19]}  Rxb2 {[%clk 0:00:48]} 33. a4 {[%clk 0:01:19]}  Kg5 {[%clk 0:00:42]} 34. Rf1 {[%clk 0:01:13]}  f5 {[%clk 0:00:39]} 35. Rd1 {[%clk 0:01:11]}  Ra2 {[%clk 0:00:29]} 36. Rd4 {[%clk 0:01:11]}  h5 {[%clk 0:00:25]} 37. h4+ {[%clk 0:01:06]}  Kf6 {[%clk 0:00:25]} 38. Kh2 {[%clk 0:01:06]}  Re2 {[%clk 0:00:25]} 39. Rd7 {[%clk 0:01:03]}  Rxe3 {[%clk 0:00:21]} 40. Rxa7 {[%clk 0:01:04]}  Re2 {[%clk 0:00:21]} 41. a5 {[%clk 0:01:03]}  f4 {[%clk 0:00:19]} 42. Ra8 {[%clk 0:01:03]}  Kf5 {[%clk 0:00:19]} 43. a6 {[%clk 0:01:02]}  Kg4 {[%clk 0:00:19]} 44. Rg8 {[%clk 0:00:59]}  Kxh4 {[%clk 0:00:17]} 45. Rxg6 {[%clk 0:00:59]}  Ra2 {[%clk 0:00:18]} 46. Kg1 {[%clk 0:00:52]}  Ra1+ {[%clk 0:00:16]} 47. Kf2 {[%clk 0:00:52]}  Ra3 {[%clk 0:00:15]} 48. Ke2 {[%clk 0:00:50]}  Ra2+ {[%clk 0:00:12]} 49. Kd3 {[%clk 0:00:50]}  Ra3+ {[%clk 0:00:12]} 50. Kc4 {[%clk 0:00:48]}  Ra1 {[%clk 0:00:12]} 51. Kb5 {[%clk 0:00:48]}  Rb1+ {[%clk 0:00:12]} 52. Kc6 {[%clk 0:00:48]}  Rc1+ {[%clk 0:00:11]} 53. Kb7 {[%clk 0:00:48]}  Rb1+ {[%clk 0:00:10]} 54. Ka8 {[%clk 0:00:49]}  Ra1 {[%clk 0:00:09]} 55. Kb7 {[%clk 0:00:47]}  Rb1+ {[%clk 0:00:08]} 56. Rb6 {[%clk 0:00:47]}  Re1 {[%clk 0:00:07]} 57. a7 {[%clk 0:00:47]}  Re7+ {[%clk 0:00:07]} 58. Ka6 {[%clk 0:00:47]}  Rxa7+ {[%clk 0:00:06]} 59. Kxa7 {[%clk 0:00:48]}  Kg3 {[%clk 0:00:07]} 60. Rg6+ {[%clk 0:00:48]}  Kf2 {[%clk 0:00:07]} 61. Kb6 {[%clk 0:00:48]}  h4 {[%clk 0:00:07]} 62. Kc5 {[%clk 0:00:48]}  f3 {[%clk 0:00:07]} 63. gxf3 {[%clk 0:00:48]}  Kxf3 {[%clk 0:00:08]} 64. Rh6 {[%clk 0:00:42]}  Kg4 {[%clk 0:00:06]} 65. Kd4 {[%clk 0:00:42]}  h3 {[%clk 0:00:07]} 66. Ke3 {[%clk 0:00:42]}  Kg3 {[%clk 0:00:07]} 67. Rg6+ {[%clk 0:00:42]}  Kh2 {[%clk 0:00:08]} 68. Kf2 {[%clk 0:00:42]}  Kh1 {[%clk 0:00:08]} 69. Kg3 {[%clk 0:00:32]}  h2 {[%clk 0:00:08]} 70. Ra6 {[%clk 0:00:32]}  Kg1 {[%clk 0:00:09]} 71. Ra1# {[%clk 0:00:33]} 1-0

[Event "January 2 Late 2024"]
[Site "https://www.chess.com"]
[Date "2024.01.02"]
[Round "1"]
[White "Sokolov, Andrei"]
[Black "Hua, Lefong"]
[Result "0-1"]
[Board "128"]
[TimeControl "180+1"]
[WhiteFideId "11600306"]
[BlackFideId "2602253"]
[WhiteElo "2371"]
[BlackElo "2674"]
[WhiteTeam "LAT"]
[BlackTeam "CAN"]
[WhiteClock "0:00:07"]
[BlackClock "0:01:22"]

1. d4 {[%clk 0:03:00]}  Nf6 {[%clk 0:03:00]} 2. c4 {[%clk 0:03:00]}  c5 {[%clk 0:03:00]} 3. d5 {[%clk 0:03:00]}  e6 {[%clk 0:03:01]} 4. Nc3 {[%clk 0:02:59]}  exd5 {[%clk 0:03:01]} 5. cxd5 {[%clk 0:02:59]}  d6 {[%clk 0:03:02]} 6. e4 {[%clk 0:02:59]}  g6 {[%clk 0:03:02]} 7. Bb5+ {[%clk 0:02:59]}  Bd7 {[%clk 0:03:03]} 8. a4 {[%clk 0:02:55]}  Bg7 {[%clk 0:03:02]} 9. f4 {[%clk 0:02:53]}  O-O {[%clk 0:02:59]} 10. Nf3 {[%clk 0:02:50]}  Bg4 {[%clk 0:02:57]} 11. O-O {[%clk 0:02:48]}  a6 {[%clk 0:02:55]} 12. Be2 {[%clk 0:02:43]}  Bxf3 {[%clk 0:02:54]} 13. Bxf3 {[%clk 0:02:42]}  Ne8 {[%clk 0:02:55]} 14. a5 {[%clk 0:02:34]}  Nd7 {[%clk 0:02:54]} 15. Kh1 {[%clk 0:02:28]}  Rb8 {[%clk 0:02:52]} 16. Re1 {[%clk 0:02:22]}  Nc7 {[%clk 0:02:50]} 17. Qc2 {[%clk 0:02:10]}  b5 {[%clk 0:02:44]} 18. axb6 {[%clk 0:02:10]}  Rxb6 {[%clk 0:02:44]} 19. Be2 {[%clk 0:01:45]}  Nb5 {[%clk 0:02:40]} 20. Nxb5 {[%clk 0:01:34]}  axb5 {[%clk 0:02:41]} 21. Bd2 {[%clk 0:01:28]}  Re8 {[%clk 0:02:38]} 22. Bc3 {[%clk 0:01:22]}  Bxc3 {[%clk 0:02:23]} 23. bxc3 {[%clk 0:01:22]}  c4 {[%clk 0:02:19]} 24. Bf3 {[%clk 0:01:12]}  Qf6 {[%clk 0:02:13]} 25. g3 {[%clk 0:01:04]}  Nc5 {[%clk 0:02:09]} 26. Ra7 {[%clk 0:00:40]}  Nd3 {[%clk 0:01:44]} 27. Rea1 {[%clk 0:00:36]}  b4 {[%clk 0:01:25]} 28. cxb4 {[%clk 0:00:36]}  Rxb4 {[%clk 0:01:25]} 29. Ra8 {[%clk 0:00:33]}  Rxa8 {[%clk 0:01:25]} 30. Rxa8+ {[%clk 0:00:33]}  Kg7 {[%clk 0:01:26]} 31. Ra2 {[%clk 0:00:11]}  Qd4 {[%clk 0:01:23]} 32. Kg2 {[%clk 0:00:07]}  Ne1+ {[%clk 0:01:22]} 0-1

[Event "January 2 Late 2024"]
[Site "https://www.chess.com"]
[Date "2024.01.02"]
[Round "1"]
[White "Schmakel, Sam"]
[Black "Pullela, Sricharan"]
[Result "1-0"]
[Board "129"]
[TimeControl "180+1"]
[WhiteFideId "2039311"]
[BlackFideId "30951089"]
[WhiteElo "2673"]
[BlackElo "2369"]
[WhiteTeam "USA"]
[BlackTeam "USA"]
[WhiteClock "0:00:21"]
[BlackClock "0:00:11"]

1. e4 {[%clk 0:02:58]}  c5 {[%clk 0:02:59]} 2. Nf3 {[%clk 0:02:55]}  Nc6 {[%clk 0:02:59]} 3. d4 {[%clk 0:02:48]}  cxd4 {[%clk 0:02:59]} 4. Nxd4 {[%clk 0:02:49]}  Nf6 {[%clk 0:02:59]} 5. Nc3 {[%clk 0:02:50]}  e5 {[%clk 0:02:58]} 6. Ndb5 {[%clk 0:02:49]}  d6 {[%clk 0:02:58]} 7. Bg5 {[%clk 0:02:49]}  a6 {[%clk 0:02:58]} 8. Na3 {[%clk 0:02:50]}  b5 {[%clk 0:02:58]} 9. Bxf6 {[%clk 0:02:50]}  gxf6 {[%clk 0:02:59]} 10. Nd5 {[%clk 0:02:51]}  f5 {[%clk 0:02:59]} 11. c3 {[%clk 0:02:42]}  Bg7 {[%clk 0:02:52]} 12. Nxb5 {[%clk 0:02:33]}  axb5 {[%clk 0:02:50]} 13. Bxb5 {[%clk 0:02:34]}  Bb7 {[%clk 0:02:42]} 14. exf5 {[%clk 0:02:34]}  O-O {[%clk 0:02:40]} 15. Qg4 {[%clk 0:02:11]}  Kh8 {[%clk 0:02:40]} 16. Bd3 {[%clk 0:02:09]}  e4 {[%clk 0:02:27]} 17. Bxe4 {[%clk 0:02:06]}  Ne5 {[%clk 0:02:27]} 18. Qh5 {[%clk 0:02:00]}  Bxd5 {[%clk 0:02:09]} 19. Bxd5 {[%clk 0:02:00]}  Ra5 {[%clk 0:02:08]} 20. Be4 {[%clk 0:01:57]}  d5 {[%clk 0:02:07]} 21. Bc2 {[%clk 0:01:52]}  Qf6 {[%clk 0:01:56]} 22. O-O {[%clk 0:01:50]}  Nc4 {[%clk 0:01:54]} 23. b3 {[%clk 0:01:47]}  Nd2 {[%clk 0:01:52]} 24. Rfd1 {[%clk 0:01:47]}  Ne4 {[%clk 0:01:49]} 25. c4 {[%clk 0:01:42]}  Nc3 {[%clk 0:01:43]} 26. Rd3 {[%clk 0:01:34]}  d4 {[%clk 0:01:41]} 27. g4 {[%clk 0:01:20]}  Ne2+ {[%clk 0:01:36]} 28. Kf1 {[%clk 0:01:20]}  Nf4 {[%clk 0:01:36]} 29. g5 {[%clk 0:01:20]}  Nxh5 {[%clk 0:01:33]} 30. gxf6 {[%clk 0:01:20]}  Bxf6 {[%clk 0:01:30]} 31. b4 {[%clk 0:01:19]}  Raa8 {[%clk 0:01:27]} 32. Bb3 {[%clk 0:01:05]}  Nf4 {[%clk 0:01:24]} 33. Rf3 {[%clk 0:01:05]}  Be5 {[%clk 0:01:24]} 34. f6 {[%clk 0:01:03]}  Ra3 {[%clk 0:01:06]} 35. Re1 {[%clk 0:01:02]}  Bb8 {[%clk 0:00:58]} 36. c5 {[%clk 0:00:58]}  d3 {[%clk 0:00:57]} 37. Bxf7 {[%clk 0:00:52]}  h5 {[%clk 0:00:49]} 38. Bb3 {[%clk 0:00:45]}  d2 {[%clk 0:00:48]} 39. Rd1 {[%clk 0:00:45]}  Rxf6 {[%clk 0:00:45]} 40. Rxd2 {[%clk 0:00:45]}  Be5 {[%clk 0:00:37]} 41. b5 {[%clk 0:00:38]}  Ra5 {[%clk 0:00:35]} 42. a4 {[%clk 0:00:38]}  Ra7 {[%clk 0:00:26]} 43. b6 {[%clk 0:00:33]}  Rg7 {[%clk 0:00:27]} 44. Rd8+ {[%clk 0:00:26]}  Kh7 {[%clk 0:00:26]} 45. Bc2+ {[%clk 0:00:27]}  Kh6 {[%clk 0:00:26]} 46. Rh8+ {[%clk 0:00:27]}  Kg5 {[%clk 0:00:23]} 47. Rg3+ {[%clk 0:00:28]}  Kh4 {[%clk 0:00:24]} 48. Rxg7 {[%clk 0:00:28]}  Nh3 {[%clk 0:00:20]} 49. Rg2 {[%clk 0:00:28]}  Bd4 {[%clk 0:00:19]} 50. b7 {[%clk 0:00:23]}  Bxf2 {[%clk 0:00:15]} 51. b8=Q {[%clk 0:00:21]}  Bg3+ {[%clk 0:00:16]} 52. Ke2 {[%clk 0:00:19]}  Bxb8 {[%clk 0:00:15]} 53. Rxb8 {[%clk 0:00:19]}  Nf4+ {[%clk 0:00:16]} 54. Kf3 {[%clk 0:00:19]}  Nxg2+ {[%clk 0:00:12]} 55. Kxg2 {[%clk 0:00:20]}  Rf4 {[%clk 0:00:12]} 56. Re8 {[%clk 0:00:18]}  Rg4+ {[%clk 0:00:09]} 57. Kf2 {[%clk 0:00:18]}  Rf4+ {[%clk 0:00:10]} 58. Ke3 {[%clk 0:00:18]}  Rf1 {[%clk 0:00:09]} 59. Re4+ {[%clk 0:00:17]}  Kh3 {[%clk 0:00:10]} 60. c6 {[%clk 0:00:18]}  Rc1 {[%clk 0:00:09]} 61. Rc4 {[%clk 0:00:18]}  h4 {[%clk 0:00:09]} 62. Bf5+ {[%clk 0:00:18]}  Kxh2 {[%clk 0:00:09]} 63. Rxc1 {[%clk 0:00:19]}  h3 {[%clk 0:00:09]} 64. c7 {[%clk 0:00:19]}  Kg3 {[%clk 0:00:10]} 65. c8=Q {[%clk 0:00:20]}  h2 {[%clk 0:00:10]} 66. Qg8+ {[%clk 0:00:20]}  Kh4 {[%clk 0:00:11]} 67. Qg4# {[%clk 0:00:21]} 1-0